bitfinex-derivatives/quotes_BTCF0:USTF0_20210706
["timestamp","ask_amount","ask_price","bid_price","bid_amount"]
[1625586407695,3.16146397,33993.0,33992.0,0.5864838]
[1625586407937,4.53014134,33993.0,33992.0,0.5864838]
[1625586408298,4.2895659,33993.0,33992.0,0.5864838]
[1625586408660,4.2895659,33993.0,33992.0,0.67298507]
[1625586408899,4.2895659,33993.0,33992.0,0.32707671]
[1625586410399,4.53014134,33993.0,33992.0,0.32707671]
[1625586412444,4.53014134,33993.0,33992.0,0.24057544]
[1625586413169,4.53014134,33993.0,33992.0,0.32897544]
[1625586413529,4.53014134,33993.0,33992.0,0.24057544]
[1625586416114,4.53014134,33993.0,33992.0,0.32857544]
[1625586416353,4.53014134,33993.0,33992.0,0.24057544]
[1625586416594,4.53014134,33993.0,33992.0,0.32705939]
[1625586416835,2.92088853,33993.0,33992.0,0.93241897]
[1625586417195,1.72435332,33993.0,33992.0,1.97014689]
[1625586417377,1.72435332,33993.0,33992.0,2.05714689]
[1625586417616,0.69872729,33993.0,33992.0,3.26779633]
[1625586417734,0.69872729,33993.0,33992.0,3.27190138]
[1625586417855,0.69872729,33993.0,33992.0,3.18490138]
[1625586418516,0.68381488,33993.0,33992.0,3.18490138]
[1625586418638,0.68392694,33994.0,33992.0,3.18490138]
[1625586418755,0.0149069,33993.0,33992.0,3.18490138]
[1625586418875,0.0149069,33993.0,33992.0,3.27310138]
[1625586418996,0.0149069,33993.0,33992.0,3.26899633]
[1625586419118,0.69875912,33993.0,33992.0,0.32877544]
[1625586419238,0.69875912,33993.0,33992.0,0.33288038]
[1625586419357,0.69875912,33993.0,33992.0,3.27307615]
[1625586420198,0.0149069,33993.0,33992.0,3.27307615]
[1625586420860,0.69753016,33993.0,33992.0,3.27307615]
[1625586422243,0.69753016,33993.0,33992.0,3.18487615]
[1625586422363,0.44150359,33993.0,33992.0,4.56852839]
[1625586422545,0.68217961,33995.0,33992.0,4.56852839]
[1625586422661,0.68217961,33995.0,33992.0,4.81653839]
[1625586422782,1.02318416,33996.0,33994.0,2.94018749]
[1625586422783,0.68241399,33996.0,33994.0,2.94018749]
[1625586422902,0.68241399,33996.0,33995.0,0.0885]
[1625586423024,0.68241399,33996.0,33995.0,2.94015943]
[1625586423143,0.69727656,33996.0,33995.0,2.94428049]
[1625586423268,1.19415556,33999.0,33995.0,2.94428049]
[1625586423684,0.01481853,33998.0,33997.0,1.21065904]
[1625586423985,0.0148184,33999.0,33997.0,1.2147962]
[1625586424227,0.01481813,34000.0,33998.0,1.21474201]
[1625586424465,0.01481813,34000.0,33999.0,0.4852879]
[1625586424586,0.01481813,34000.0,33999.0,0.7090279]
[1625586425367,0.01481813,34000.0,33999.0,0.70489088]
[1625586426387,1.21056209,34000.0,33999.0,0.70489088]
[1625586426991,1.21056209,34000.0,33999.0,0.48115088]
[1625586427473,2.57683869,34000.0,33999.0,0.48115088]
[1625586429397,4.11267802,34000.0,33999.0,0.24057544]
[1625586429636,4.42390802,34000.0,33999.0,0.24057544]
[1625586430478,4.66448346,34000.0,33999.0,0.24057544]
[1625586437938,4.64966533,34000.0,33999.0,0.24057544]
[1625586438059,4.6644762,34000.0,33999.0,0.24057544]
[1625586442275,4.69920868,34000.0,33999.0,0.24057544]
[1625586443114,6.40728097,34000.0,33999.0,0.24057544]
[1625586444135,6.91971795,34000.0,33999.0,0.24057544]
[1625586453504,7.94128325,34000.0,33999.0,0.24057544]
[1625586454349,7.94128325,34000.0,33992.0,0.24057544]
[1625586454712,6.3787848,33993.0,33992.0,0.24057544]
[1625586455071,6.39359541,33993.0,33992.0,0.24057544]
[1625586455909,6.42833379,33993.0,33992.0,0.24057544]
[1625586456150,6.39359541,33993.0,33992.0,0.24057544]
[1625586456931,5.91244453,33993.0,33992.0,0.24057544]
[1625586457055,5.62841453,33993.0,33992.0,0.24057544]
[1625586457416,4.09749349,33993.0,33992.0,0.24057544]
[1625586457774,4.09749349,33993.0,33992.0,0.75992371]
[1625586458672,2.73665589,33993.0,33992.0,2.03910666]
[1625586460234,2.73665589,33993.0,33992.0,2.33654666]
[1625586460717,4.0992004,33993.0,33992.0,1.29793915]
[1625586461619,4.0992004,33993.0,33992.0,1.00049915]
[1625586462160,4.0992004,33993.0,33992.0,0.48115088]
[1625586463542,5.62961588,33993.0,33992.0,0.48115088]
[1625586464507,5.66435261,33993.0,33992.0,0.48115088]
[1625586468837,5.66435261,33993.0,33992.0,0.24057544]
[1625586469202,5.66435261,33993.0,33987.0,0.24057544]
[1625586469320,0.5,33992.0,33985.0,0.51912166]
[1625586469441,0.0877,33992.0,33985.0,0.51912166]
[1625586469558,0.0877,33992.0,33983.0,1.03842855]
[1625586469559,3.38407156,33986.0,33983.0,1.03842855]
[1625586469682,3.38407156,33986.0,33978.0,0.51921331]
[1625586469684,5.58372654,33986.0,33978.0,0.51921331]
[1625586469797,7.61054247,33986.0,33976.0,1.03842662]
[1625586469923,0.04956879,33985.0,33973.0,0.5192642]
[1625586470039,0.04956879,33985.0,33972.0,2.01372841]
[1625586470040,0.04956879,33985.0,33972.0,1.49449083]
[1625586470042,2.36333076,33974.0,33972.0,1.49449083]
[1625586470158,4.05152061,33974.0,33972.0,1.49449083]
[1625586470277,4.9151,33973.0,33972.0,1.49449083]
[1625586470405,4.9151,33973.0,33972.0,0.9752]
[1625586470406,7.6154241,33973.0,33972.0,0.9752]
[1625586470643,8.97891602,33973.0,33972.0,0.9752]
[1625586470878,11.21740021,33973.0,33972.0,0.9752]
[1625586471062,9.70064234,33973.0,33972.0,0.9752]
[1625586472202,9.68581739,33973.0,33972.0,0.9752]
[1625586472804,11.20783767,33973.0,33972.0,0.9752]
[1625586473044,9.70064457,33973.0,33963.0,0.51851123]
[1625586473284,0.50230206,33964.0,33963.0,0.51851123]
[1625586473403,0.77727206,33964.0,33963.0,0.51851123]
[1625586473525,0.27497,33964.0,33962.0,0.24057544]
[1625586473764,0.27497,33964.0,33962.0,0.75839294]
[1625586474486,0.27497,33964.0,33963.0,0.51773309]
[1625586474605,0.50162443,33968.0,33963.0,0.51773309]
[1625586474846,0.24057544,33964.0,33963.0,0.51773309]
[1625586475150,0.24057544,33964.0,33963.0,1.55313723]
[1625586475391,0.24057544,33964.0,33963.0,0.51773309]
[1625586476890,0.24057544,33968.0,33963.0,0.75830853]
[1625586477131,0.24057544,33968.0,33964.0,0.51696185]
[1625586478933,0.24057544,33968.0,33967.0,0.24057544]
[1625586484947,0.48115088,33973.0,33967.0,0.24057544]
[1625586486390,0.24057544,33973.0,33967.0,0.55449544]
[1625586486692,0.24057544,33973.0,33968.0,0.51649982]
[1625586486931,0.24057544,33973.0,33972.0,0.24057544]
[1625586489273,0.24057544,33973.0,33972.0,0.41280103]
[1625586492877,0.24057544,33973.0,33972.0,0.24057544]
[1625586493358,0.24057544,33973.0,33972.0,0.41283196]
[1625586494081,0.56102544,33973.0,33972.0,0.24057544]
[1625586499604,0.24057544,33973.0,33972.0,0.24057544]
[1625586501164,0.24057544,33973.0,33972.0,0.58562544]
[1625586502304,0.16634517,33977.0,33972.0,0.58562544]
[1625586502544,0.16634517,33977.0,33972.0,0.58977787]
[1625586502727,0.40672573,33978.0,33972.0,0.76214809]
[1625586502846,0.40672573,33978.0,33972.0,0.75799566]
[1625586502966,0.16615029,33978.0,33973.0,0.17238894]
[1625586503086,0.16615029,33978.0,33973.0,0.17654139]
[1625586503207,0.16615029,33978.0,33977.0,0.48115088]
[1625586503330,0.16622278,33979.0,33977.0,0.48115088]
[1625586503448,0.49833622,33980.0,33977.0,0.48115088]
[1625586503571,1.23708183,33982.0,33977.0,0.48115088]
[1625586503572,0.16637131,33982.0,33980.0,4.06174]
[1625586503809,0.66498664,33984.0,33980.0,4.06174]
[1625586503929,0.49916158,33985.0,33980.0,4.06174]
[1625586504171,0.01478259,33983.0,33980.0,4.06174]
[1625586504413,0.24057544,33986.0,33980.0,4.06174]
[1625586504591,0.24057544,33986.0,33980.0,4.57884585]
[1625586505073,0.24057544,33986.0,33980.0,4.06174]
[1625586505193,0.24057544,33986.0,33985.0,0.48115088]
[1625586505677,0.25535755,33986.0,33985.0,0.48115088]
[1625586506040,0.75447806,33986.0,33985.0,0.48115088]
[1625586506281,1.41977458,33986.0,33985.0,0.48115088]
[1625586506766,0.75447806,33986.0,33985.0,0.48115088]
[1625586506881,0.25535755,33986.0,33985.0,0.48115088]
[1625586507122,0.24057544,33986.0,33985.0,0.48115088]
[1625586507305,1.42024329,33986.0,33985.0,0.48115088]
[1625586507482,0.75461829,33986.0,33985.0,0.48115088]
[1625586507601,0.73983578,33986.0,33985.0,0.48115088]
[1625586507785,0.24057544,33986.0,33985.0,0.48115088]
[1625586508143,0.25535789,33986.0,33985.0,0.48115088]
[1625586508385,0.24057544,33986.0,33985.0,0.48115088]
[1625586509104,1.16305379,33988.0,33985.0,0.48115088]
[1625586509225,1.16305379,33988.0,33987.0,0.24057544]
[1625586509345,1.16305379,33988.0,33987.0,0.45594544]
[1625586509465,0.49847535,33988.0,33987.0,0.45594544]
[1625586510429,0.01478181,33988.0,33987.0,0.45594544]
[1625586510731,0.49863809,33989.0,33987.0,0.45594544]
[1625586511209,0.49863809,33989.0,33988.0,0.24057544]
[1625586511867,0.24057544,33994.0,33988.0,0.24057544]
[1625586512108,0.49890761,33992.0,33988.0,0.24057544]
[1625586513131,1.16331745,33993.0,33988.0,0.24057544]
[1625586513250,0.49816272,33993.0,33992.0,4.96687544]
[1625586514272,0.73745491,33994.0,33992.0,4.96687544]
[1625586515294,0.24057544,33994.0,33992.0,5.20745088]
[1625586515653,0.49618343,33996.0,33992.0,5.20745088]
[1625586516015,1.15742844,33997.0,33992.0,5.20745088]
[1625586516256,0.49590565,33997.0,33992.0,5.20745088]
[1625586516495,1.15690153,33998.0,33992.0,5.20745088]
[1625586516736,0.49583458,33998.0,33992.0,5.20745088]
[1625586516977,1.15711026,33999.0,33992.0,5.20745088]
[1625586517218,1.15711026,33999.0,33998.0,0.48115088]
[1625586517337,1.15711026,33999.0,33998.0,0.75370088]
[1625586518542,2.14954742,33999.0,33998.0,0.75370088]
[1625586518661,2.14954742,33999.0,33998.0,0.48115088]
[1625586518782,3.30681339,33999.0,33998.0,0.48115088]
[1625586519265,3.54738883,33999.0,33998.0,0.48115088]
[1625586519510,4.86859294,33999.0,33998.0,0.48115088]
[1625586519626,4.88336434,33999.0,33998.0,0.48115088]
[1625586519985,6.368323,33999.0,33998.0,0.48115088]
[1625586520828,6.368323,33999.0,33998.0,0.24057544]
[1625586521308,6.60889844,33999.0,33998.0,0.24057544]
[1625586521429,6.60889844,33999.0,33992.0,0.48115088]
[1625586521549,6.94042844,33999.0,33992.0,0.48115088]
[1625586521790,3.29140339,33993.0,33992.0,0.48115088]
[1625586523051,3.30617603,33993.0,33992.0,0.48115088]
[1625586523353,4.86321559,33993.0,33992.0,0.48115088]
[1625586526537,4.86321559,33993.0,33985.0,0.24057544]
[1625586526777,0.49540798,33986.0,33985.0,0.24057544]
[1625586526896,0.82506798,33986.0,33985.0,0.24057544]
[1625586527379,1.06564342,33986.0,33985.0,0.24057544]
[1625586528460,1.72531609,33986.0,33985.0,0.24057544]
[1625586529120,1.06564342,33986.0,33985.0,0.24057544]
[1625586529721,0.73598342,33986.0,33985.0,0.24057544]
[1625586529964,0.24057544,33986.0,33985.0,0.24057544]
[1625586531049,1.15491574,33992.0,33985.0,0.24057544]
[1625586531167,1.15491574,33992.0,33986.0,0.0868]
[1625586531288,1.15611194,33995.0,33988.0,0.51722539]
[1625586531408,1.15611194,33995.0,33994.0,0.48115088]
[1625586531527,1.15611194,33995.0,33994.0,0.75512088]
[1625586531647,0.49550013,33995.0,33994.0,0.75512088]
[1625586531887,1.1564821,33996.0,33994.0,0.75512088]
[1625586532071,0.49557636,33995.0,33994.0,0.75512088]
[1625586532429,0.51034555,33995.0,33994.0,0.75512088]
[1625586533874,1.17343136,33995.0,33994.0,0.75512088]
[1625586534596,2.16760382,33995.0,33994.0,0.75512088]
[1625586534717,2.16760382,33995.0,33994.0,0.48115088]
[1625586535739,3.32718319,33995.0,33994.0,0.48115088]
[1625586536228,3.32718319,33995.0,33994.0,0.24057544]
[1625586536229,3.56651319,33995.0,33994.0,0.24057544]
[1625586536346,4.89090078,33995.0,33994.0,0.24057544]
[1625586537418,5.13147622,33995.0,33994.0,0.24057544]
[1625586537661,3.80708863,33995.0,33994.0,0.24057544]
[1625586537901,3.56775863,33995.0,33994.0,0.45123544]
[1625586538141,2.40817926,33995.0,33994.0,0.45123544]
[1625586538926,2.40817926,33995.0,33994.0,0.53913544]
[1625586539106,0.24057544,33999.0,33994.0,0.53913544]
[1625586539348,0.24057544,33999.0,33994.0,0.45123544]
[1625586539466,0.24057544,33999.0,33998.0,0.24057544]
[1625586540067,0.01472335,33999.0,33998.0,0.24057544]
[1625586540549,0.01472332,34000.0,33998.0,0.24057544]
[1625586540793,0.01472424,33999.0,33998.0,0.24057544]
[1625586541149,0.01472411,34001.0,33998.0,0.24057544]
[1625586541395,0.01472407,33999.0,33998.0,0.24057544]
[1625586541631,0.01472407,34000.0,33998.0,0.24057544]
[1625586541871,0.01472398,33999.0,33998.0,0.24057544]
[1625586542110,0.01472385,34000.0,33998.0,0.24057544]
[1625586542592,0.01472385,34000.0,33998.0,4.17697544]
[1625586546501,1.50511913,34000.0,33998.0,4.17697544]
[1625586546920,0.01472444,33999.0,33998.0,4.17697544]
[1625586548969,1.50615638,33999.0,33998.0,4.17697544]
[1625586549213,0.01472444,33999.0,33998.0,4.17697544]
[1625586549450,1.50622794,33999.0,33998.0,4.17697544]
[1625586549690,0.01472444,33999.0,33998.0,4.17697544]
[1625586550172,1.50672713,33999.0,33998.0,4.17697544]
[1625586552335,0.01472444,33999.0,33998.0,4.17697544]
[1625586552996,0.01472361,34000.0,33998.0,4.17697544]
[1625586553116,0.01472361,34000.0,33998.0,4.46330544]
[1625586554381,1.32864217,33999.0,33998.0,4.46330544]
[1625586554860,1.34336566,33999.0,33998.0,4.46330544]
[1625586559425,2.51083338,33999.0,33998.0,4.46330544]
[1625586559549,0.50923338,33999.0,33998.0,4.46330544]
[1625586559977,0.44062644,34012.0,33998.0,4.46330544]
[1625586559979,1.5023248,34005.0,33998.0,4.46330544]
[1625586560214,0.01468138,34004.0,33999.0,0.3459184]
[1625586560333,0.01470618,34005.0,33999.0,0.3459184]
[1625586560456,0.01470618,34005.0,33998.0,4.55010544]
[1625586560457,0.24057544,34015.0,33998.0,4.55010544]
[1625586560459,0.24057544,34015.0,34001.0,0.34590405]
[1625586560460,1.67157708,34012.0,34001.0,0.34590405]
[1625586560688,0.24057544,34015.0,33998.0,5.05010544]
[1625586560689,1.6723166,34014.0,34003.0,0.34589492]
[1625586560807,0.04936711,34011.0,34003.0,0.34589492]
[1625586561049,0.04936416,34013.0,34003.0,0.34589492]
[1625586561290,0.04936416,34014.0,34003.0,0.34589492]
[1625586561412,0.04936416,34014.0,34013.0,4.7702]
[1625586561535,0.04936416,34014.0,34013.0,5.72383632]
[1625586563156,0.01463731,34014.0,34013.0,5.72383632]
[1625586564899,0.01463532,34019.0,34013.0,5.72383632]
[1625586565441,0.01463422,34021.0,34013.0,5.72383632]
[1625586565561,1.68200251,34026.0,34020.0,0.48115088]
[1625586565680,1.68200251,34026.0,34020.0,0.70612088]
[1625586565861,0.24057544,34028.0,34020.0,0.70612088]
[1625586565982,0.01458929,34025.0,34020.0,0.70612088]
[1625586566281,0.01458923,34027.0,34020.0,0.70612088]
[1625586566762,0.01458923,34027.0,34020.0,1.20612088]
[1625586566885,0.01458829,34030.0,34020.0,1.20612088]
[1625586567004,0.01458829,34030.0,34021.0,0.84518923]
[1625586567124,1.92483852,34035.0,34021.0,0.84518923]
[1625586567247,0.24057544,34035.0,34034.0,4.2694]
[1625586567363,0.24057544,34035.0,34034.0,4.59568]
[1625586567604,0.01458736,34035.0,34034.0,5.31740632]
[1625586567845,0.01458705,34037.0,34034.0,5.31740632]
[1625586568205,0.01458672,34038.0,34034.0,5.31740632]
[1625586568449,0.01458639,34036.0,34034.0,5.31740632]
[1625586568689,0.0145861,34037.0,34034.0,5.31740632]
[1625586568931,0.24057544,34039.0,34034.0,5.31740632]
[1625586569349,1.0072332,34035.0,34034.0,5.31740632]
[1625586571032,1.2662232,34035.0,34034.0,4.99112632]
[1625586571635,1.50679864,34035.0,34034.0,4.99112632]
[1625586574522,2.84542285,34035.0,34034.0,4.99112632]
[1625586575243,1.50679864,34035.0,34034.0,4.99112632]
[1625586575964,1.50679864,34035.0,34034.0,0.72172632]
[1625586576267,2.84418039,34035.0,34034.0,0.72172632]
[1625586577227,1.50679864,34035.0,34034.0,0.72172632]
[1625586579576,1.24780864,34035.0,34034.0,0.72172632]
[1625586579940,1.24780864,34035.0,34034.0,0.98011632]
[1625586579941,0.24057544,34035.0,34034.0,0.98011632]
[1625586580062,1.00301212,34038.0,34034.0,0.98011632]
[1625586580359,1.17015295,34040.0,34034.0,0.98011632]
[1625586580360,1.002847,34040.0,34034.0,0.98011632]
[1625586580600,1.00260433,34041.0,34034.0,0.98011632]
[1625586581320,1.00186533,34040.0,34034.0,0.98011632]
[1625586581442,1.00186533,34040.0,34039.0,4.6314]
[1625586581562,1.2419746,34042.0,34039.0,4.6314]
[1625586581802,1.2419746,34042.0,34041.0,0.74978088]
[1625586582104,0.24057544,34042.0,34041.0,0.74978088]
[1625586584749,1.23939808,34042.0,34041.0,0.74978088]
[1625586584865,1.23939808,34042.0,34041.0,0.48115088]
[1625586585228,0.24057544,34042.0,34041.0,0.48115088]
[1625586585347,0.24057544,34042.0,34041.0,0.81253088]
[1625586585586,0.99911891,34045.0,34041.0,0.81253088]
[1625586585826,0.99911891,34045.0,34043.0,0.24057544]
[1625586585947,1.00130274,34049.0,34043.0,0.24057544]
[1625586586671,1.24270478,34050.0,34043.0,0.24057544]
[1625586586973,1.24270478,34050.0,34043.0,0.32987544]
[1625586587329,0.24057544,34050.0,34043.0,0.32987544]
[1625586587751,0.24057544,34050.0,34049.0,0.24057544]
[1625586588828,1.24334036,34050.0,34049.0,0.24057544]
[1625586588949,2.41354704,34050.0,34049.0,0.24057544]
[1625586589430,2.42810212,34050.0,34049.0,0.24057544]
[1625586589672,1.24334036,34050.0,34039.0,3.87817544]
[1625586589792,0.72172632,34040.0,34028.0,1.17177544]
[1625586589911,1.05974632,34040.0,34028.0,1.17177544]
[1625586590271,6.17294632,34040.0,34028.0,1.17177544]
[1625586591353,1.05974632,34040.0,34028.0,1.17177544]
[1625586591835,0.48115088,34029.0,34028.0,1.17177544]
[1625586596520,0.48115088,34029.0,34028.0,1.25997544]
[1625586600671,0.78832088,34029.0,34028.0,1.25997544]
[1625586601270,0.78832088,34029.0,34028.0,1.17177544]
[1625586604521,0.48115088,34029.0,34028.0,1.17177544]
[1625586606866,0.48115088,34029.0,34028.0,1.17599787]
[1625586608671,0.48115088,34029.0,34028.0,1.44439787]
[1625586611012,0.49570761,34029.0,34028.0,1.44439787]
[1625586611854,0.48115088,34029.0,34028.0,1.44439787]
[1625586612155,0.48115088,34029.0,34028.0,1.53169787]
[1625586613657,0.45225088,34029.0,34028.0,1.53169787]
[1625586614498,0.42495088,34029.0,34028.0,1.53169787]
[1625586614739,0.43510752,34029.0,34028.0,1.53169787]
[1625586615580,0.43510752,34029.0,34028.0,1.44439787]
[1625586615703,0.43510752,34029.0,34028.0,1.87369496]
[1625586616666,0.43510752,34029.0,34028.0,1.96229496]
[1625586616788,0.43510752,34029.0,34028.0,1.61885729]
[1625586617509,0.43510752,34029.0,34028.0,1.53299787]
[1625586619131,0.43510752,34029.0,34028.0,2.22082205]
[1625586619372,0.43510752,34029.0,34028.0,4.45984148]
[1625586619551,0.43510752,34029.0,34028.0,3.25421563]
[1625586619912,0.42055088,34029.0,34028.0,3.25421563]
[1625586620032,0.42055088,34029.0,34028.0,4.459826]
[1625586621416,0.42055088,34029.0,34028.0,5.83931871]
[1625586622495,0.42055088,34029.0,34028.0,4.459826]
[1625586623038,0.43510931,34029.0,34028.0,4.459826]
[1625586623277,0.43510931,34029.0,34028.0,5.84148873]
[1625586623640,0.43510931,34029.0,34028.0,5.75288873]
[1625586623759,0.43510931,34029.0,34028.0,4.102826]
[1625586624180,0.67568475,34029.0,34028.0,3.86225056]
[1625586624658,0.67568475,34029.0,34028.0,3.94985056]
[1625586625259,0.67568475,34029.0,34028.0,2.74424019]
[1625586625501,0.67568475,34029.0,34028.0,3.95339925]
[1625586625742,0.67568475,34029.0,34028.0,5.33644777]
[1625586627003,0.67568475,34029.0,34028.0,5.24884777]
[1625586627964,0.67568475,34029.0,34028.0,5.33604777]
[1625586628327,0.67568475,34029.0,34028.0,5.24884777]
[1625586629410,0.67568475,34029.0,34028.0,5.76749557]
[1625586630188,0.67568475,34029.0,34028.0,6.00807101]
[1625586633314,1.35212845,34029.0,34028.0,6.00807101]
[1625586633798,2.36636518,34029.0,34028.0,4.62502249]
[1625586634036,1.35212845,34029.0,34028.0,6.00868621]
[1625586635237,2.36696089,34029.0,34028.0,6.00868621]
[1625586635478,1.35212845,34029.0,34028.0,6.00868621]
[1625586636380,2.36707193,34029.0,34028.0,6.00868621]
[1625586636858,2.36707193,34029.0,34028.0,4.62502249]
[1625586636978,2.68034193,34029.0,34028.0,4.62502249]
[1625586637233,2.68034193,34029.0,34028.0,4.38444705]
[1625586637469,2.68034193,34029.0,34028.0,3.17528799]
[1625586637470,5.21595261,34029.0,34028.0,3.17528799]
[1625586637581,9.84205261,34029.0,34028.0,3.17528799]
[1625586637819,9.84205261,34029.0,34028.0,3.17106556]
[1625586638060,11.36215865,34029.0,34028.0,1.01776439]
[1625586638782,11.36215865,34029.0,34028.0,0.9312]
[1625586640162,6.46625698,34029.0,34028.0,0.9312]
[1625586640287,7.26779786,34029.0,34028.0,1.17177544]
[1625586640532,6.94774692,34029.0,34028.0,1.17177544]
[1625586640776,6.94774692,34029.0,34028.0,1.25835156]
[1625586641252,6.94774692,34029.0,34028.0,1.17177544]
[1625586645395,5.42764088,34029.0,34028.0,1.17177544]
[1625586645516,5.10725088,34029.0,34028.0,1.17177544]
[1625586645876,6.62052651,34029.0,34028.0,1.17177544]
[1625586649665,5.10725088,34029.0,34028.0,1.17177544]
[1625586650868,6.6175407,34029.0,34028.0,1.17177544]
[1625586652729,5.10725088,34029.0,34028.0,1.17177544]
[1625586656998,6.62085182,34029.0,34028.0,1.17177544]
[1625586657720,6.62085182,34029.0,34028.0,0.24057544]
[1625586657839,6.62085182,34029.0,34023.0,0.08641028]
[1625586657961,6.62085182,34029.0,34021.0,0.84548469]
[1625586658200,1.34413178,34023.0,34021.0,0.49982226]
[1625586658440,1.64904178,34023.0,34021.0,0.49982226]
[1625586658561,5.20842941,34022.0,34021.0,0.49982226]
[1625586658801,5.19395088,34022.0,34021.0,0.49982226]
[1625586659042,5.20842948,34022.0,34021.0,0.49982226]
[1625586659163,5.20842948,34022.0,34021.0,0.32699105]
[1625586659708,5.20842948,34022.0,34021.0,0.24057544]
[1625586659946,5.20842948,34022.0,34021.0,0.32696779]
[1625586660186,5.20842948,34022.0,34021.0,0.24057544]
[1625586660425,6.38404195,34022.0,34021.0,0.24057544]
[1625586661087,6.38404195,34022.0,34021.0,0.49973776]
[1625586661326,6.38404195,34022.0,34021.0,0.32696288]
[1625586661566,6.38404195,34022.0,34021.0,0.49973599]
[1625586662475,6.38404195,34022.0,34021.0,0.32696288]
[1625586662953,6.38404195,34022.0,34021.0,0.49970759]
[1625586663255,6.38404195,34022.0,34021.0,0.32696288]
[1625586663374,6.38404195,34022.0,34021.0,0.24057544]
[1625586664095,6.38404195,34022.0,34020.0,0.08636935]
[1625586664275,1.17535474,34021.0,34019.0,0.60458798]
[1625586664395,1.1898335,34021.0,34019.0,0.60458798]
[1625586664515,1.1898335,34021.0,34019.0,0.2591106]
[1625586664637,0.01447885,34020.0,34019.0,0.2591106]
[1625586665900,1.18887975,34020.0,34018.0,0.32692974]
[1625586666139,1.18843904,34019.0,34018.0,0.24057544]
[1625586666379,1.43092904,34019.0,34018.0,0.24057544]
[1625586666621,0.25696973,34019.0,34018.0,0.24057544]
[1625586667222,0.25696973,34019.0,34016.0,0.25904636]
[1625586667344,1.59679772,34019.0,34014.0,0.60432026]
[1625586667460,0.01448092,34018.0,34014.0,0.60432026]
[1625586667582,1.35376607,34018.0,34013.0,0.2590089]
[1625586667822,1.35376607,34018.0,34009.0,0.9597]
[1625586667823,1.33848311,34015.0,34011.0,0.08634093]
[1625586668061,1.33758551,34013.0,34009.0,0.9597]
[1625586668303,1.33758551,34013.0,34007.0,0.34537943]
[1625586668543,1.33758551,34013.0,34005.0,0.86270582]
[1625586668544,1.16863066,34011.0,34005.0,0.86270582]
[1625586668662,1.50038066,34011.0,34005.0,0.86270582]
[1625586668783,0.96230176,34006.0,34004.0,0.86270698]
[1625586668902,4.4884,34005.0,34004.0,0.86270698]
[1625586669083,4.50288366,34005.0,34003.0,0.86273722]
[1625586669445,4.4884,34005.0,34004.0,0.34509182]
[1625586669683,4.4884,34005.0,34003.0,0.86273327]
[1625586670165,4.4884,34005.0,34003.0,0.34509094]
[1625586670345,4.4884,34005.0,34004.0,0.34509759]
[1625586670587,4.4884,34005.0,34003.0,0.34480453]
[1625586670826,4.4884,34005.0,34002.0,0.86201056]
[1625586671367,4.4884,34005.0,34003.0,0.34480503]
[1625586671851,4.4884,34005.0,34003.0,0.86197656]
[1625586672453,4.4884,34005.0,34003.0,0.34480503]
[1625586672932,4.4884,34005.0,34003.0,0.86165466]
[1625586673416,4.4884,34005.0,34002.0,0.86144107]
[1625586673655,4.4884,34005.0,34001.0,0.86146295]
[1625586673958,4.4884,34005.0,34001.0,0.34458518]
[1625586674496,4.4884,34005.0,34000.0,0.34437448]
[1625586674855,0.24057544,34001.0,34000.0,0.34437448]
[1625586674980,0.56479544,34001.0,33999.0,0.34438913]
[1625586675217,0.56479544,34001.0,33998.0,0.34442303]
[1625586675517,0.56479544,34001.0,33997.0,0.86105867]
[1625586675757,0.56479544,34001.0,33995.0,0.8610969]
[1625586675997,0.56479544,34001.0,33995.0,0.34443876]
[1625586676116,3.6447,33996.0,33995.0,0.34443876]
[1625586676477,3.6447,33996.0,33994.0,0.34416148]
[1625586676837,0.72172632,33995.0,33994.0,0.34416148]
[1625586676958,0.72172632,33995.0,33993.0,0.86040903]
[1625586677863,0.72172632,33995.0,33994.0,0.3441678]
[1625586678343,0.72172632,33995.0,33993.0,0.86017814]
[1625586679004,0.72172632,33995.0,33994.0,0.34393369]
[1625586679727,0.72172632,33995.0,33994.0,0.51592322]
[1625586680088,0.72172632,33995.0,33994.0,0.34394986]
[1625586680328,0.72172632,33995.0,33993.0,0.34378166]
[1625586680811,0.72172632,33995.0,33992.0,0.9682]
[1625586680931,0.24057544,33993.0,33992.0,0.9682]
[1625586683576,0.24057544,33993.0,33987.0,0.34365993]
[1625586684058,0.24057544,33993.0,33984.0,1.03107628]
[1625586684059,0.24057544,33993.0,33985.0,0.34370626]
[1625586684299,0.24057544,33993.0,33984.0,0.85926738]
[1625586684540,0.24057544,33993.0,33984.0,0.34370799]
[1625586684899,0.48115088,33985.0,33984.0,0.34370799]
[1625586685982,0.48115088,33985.0,33984.0,0.85888789]
[1625586686703,0.48115088,33985.0,33984.0,0.34370799]
[1625586686884,0.48115088,33985.0,33984.0,0.51487219]
[1625586687850,0.48115088,33985.0,33984.0,0.85816054]
[1625586688206,0.48115088,33985.0,33984.0,0.51487219]
[1625586689949,0.48115088,33985.0,33981.0,0.48115088]
[1625586690189,0.48115088,33985.0,33982.0,0.00426123]
[1625586690373,0.48115088,33985.0,33984.0,4.11798807]
[1625586690490,0.48115088,33985.0,33984.0,8.38178807]
[1625586690730,0.48115088,33985.0,33984.0,8.38604934]
[1625586692176,0.24057544,33993.0,33984.0,8.38604934]
[1625586692356,0.24057544,33993.0,33992.0,0.85800418]
[1625586692477,0.24057544,33993.0,33992.0,1.09509418]
[1625586692597,0.24057544,33993.0,33992.0,1.78145568]
[1625586692960,0.24057544,33993.0,33992.0,6.45355568]
[1625586693077,0.24057544,33993.0,33992.0,6.69413112]
[1625586693078,0.48115088,33993.0,33992.0,6.69413112]
[1625586693438,0.48115088,33993.0,33992.0,7.8994715]
[1625586693677,0.48115088,33993.0,33992.0,9.27260599]
[1625586695660,0.48115088,33993.0,33992.0,7.8994715]
[1625586695781,0.48115088,33993.0,33992.0,6.69839124]
[1625586696802,0.48115088,33993.0,33992.0,5.66882807]
[1625586697284,0.48115088,33993.0,33992.0,5.66456795]
[1625586697524,0.48115088,33993.0,33992.0,6.00811882]
[1625586697644,0.48115088,33993.0,33992.0,6.01237832]
[1625586697763,0.48115088,33993.0,33992.0,5.49757581]
[1625586698664,0.24057544,33997.0,33992.0,5.66931888]
[1625586698785,0.24057544,33997.0,33992.0,6.69990676]
[1625586698906,0.24057544,33997.0,33995.0,0.85879955]
[1625586699145,0.24057544,33997.0,33996.0,0.58409503]
[1625586699505,0.24057544,33997.0,33996.0,0.58834883]
[1625586699746,0.24057544,33997.0,33996.0,1.79082122]
[1625586699986,0.24057544,33997.0,33996.0,2.99323563]
[1625586700348,0.24057544,33997.0,33996.0,3.68030928]
[1625586700586,0.24057544,33997.0,33996.0,5.05445079]
[1625586701127,0.24057544,33997.0,33996.0,3.68030928]
[1625586701488,0.48115088,34004.0,33996.0,3.68030928]
[1625586701728,0.48115088,34004.0,33996.0,5.05453733]
[1625586701970,0.48115088,34004.0,34003.0,2.23339688]
[1625586702088,0.48115088,34004.0,34003.0,2.54099688]
[1625586702208,0.48115088,34004.0,34003.0,6.12349688]
[1625586702448,0.48115088,34004.0,34003.0,2.5452494]